fUST/lending_fUST_20240803
["ID","MTS","AMOUNT","RATE_DAILY","PERIOD"]
[334032180,1722696639308,-500.0,0.00014246,2]
[334032181,1722696639317,-500.0,0.00014246,2]
[334032182,1722696639327,-1389.05,0.00014246,2]
[334032183,1722696639336,-2161.03,0.00014246,2]
[334032184,1722696639346,-500.0,0.00014246,2]
[334032185,1722696639356,-500.0,0.00014246,2]
[334032186,1722696639365,-808.11,0.00014246,2]
[334032187,1722696639375,-500.0,0.00014246,2]
[334032188,1722696639385,-500.0,0.00014246,2]
[334032189,1722696639394,-628.53,0.00014246,2]
[334032190,1722696639404,-1222.92,0.00014246,2]
[334032191,1722696639413,-500.0,0.00014246,2]
[334032192,1722696639424,-641.49,0.00014246,2]
[334032193,1722696639434,-643.01,0.00014246,2]
[334032194,1722696639444,-500.0,0.00014246,2]
[334032195,1722696639454,-500.0,0.00014246,2]
[334032196,1722696639464,-2847.33,0.00014246,2]
[334032197,1722696639474,-500.0,0.00014246,2]
[334032198,1722696639485,-552.06,0.00014246,2]
[334032199,1722696639498,-500.0,0.00014246,2]
[334032200,1722696639508,-500.0,0.00014246,2]
[334032201,1722696639518,-674.92,0.00014246,2]
[334032202,1722696639527,-664.29,0.00014246,2]
[334032203,1722696639537,-1037.74,0.00014246,2]
[334032204,1722696639547,-595.71,0.00014246,2]
[334032206,1722696639556,-749.2,0.00014246,2]
[334032207,1722696639566,-742.64,0.00014246,2]
[334032209,1722696639576,-500.0,0.00014246,2]
[334032210,1722696639586,-500.0,0.00014246,2]
[334032211,1722696639596,-1159.12,0.00014246,2]
[334032212,1722696639605,-1623.52,0.00014246,2]
[334032213,1722696639615,-500.0,0.00014246,2]
[334032214,1722696639624,-500.0,0.00014246,2]
[334032215,1722696639634,-817.7,0.00014246,2]
[334032216,1722696639644,-500.0,0.00014246,2]
[334032217,1722696639653,-712.5,0.00014247,2]
[334032218,1722696639663,-635.971479,0.00014247,2]
[334032219,1722696639672,-150.0,0.00014318,2]
[334032220,1722696639682,-506.0,0.00014318,2]
[334032221,1722696639692,-1410.0,0.00014318,2]
[334032222,1722696639701,-208.275,0.00014318,2]
[334032223,1722696639715,-276.05089906,0.00014387,2]
[334032224,1722696639725,-196.12459044,0.00014419,2]
[334032225,1722696639734,-4698.13948348,0.00014475,2]
[334032226,1722696639744,-17031.7172504,0.00014509,2]
[334032227,1722696639758,-17031.7172504,0.0001451,2]
[334032229,1722696639768,-2232.75,0.00014519,2]
[334032230,1722696639777,-2232.75,0.00014519,2]
[334032231,1722696639788,-500.0,0.0001452,2]
[334032232,1722696639798,-1017.04,0.0001452,2]
[334032233,1722696639808,-500.0,0.0001452,2]
[334032234,1722696639817,-500.0,0.0001452,2]
[334032235,1722696639826,-500.0,0.0001452,2]
[334032237,1722696639836,-500.0,0.0001452,2]
[334032238,1722696639845,-500.0,0.0001452,2]
[334032239,1722696639855,-473.72774188,0.0001452,2]
[334032240,1722696639864,-500.0,0.0001452,2]
[334032241,1722696639874,-620.7,0.0001452,2]
[334032242,1722696639885,-658.72,0.0001452,2]
[334032243,1722696639896,-500.0,0.0001452,2]
[334032244,1722696639907,-1027.88,0.0001452,2]
[334032245,1722696639917,-500.0,0.0001452,2]
[334032246,1722696639928,-500.0,0.0001452,2]
[334032247,1722696639939,-500.0,0.0001452,2]
[334032248,1722696639949,-672.6,0.0001452,2]
[334032249,1722696639960,-500.0,0.0001452,2]
[334032250,1722696639969,-500.0,0.0001452,2]
[334032251,1722696639981,-500.0,0.0001452,2]
[334032252,1722696639991,-896.89,0.0001452,2]
[334032253,1722696640001,-609.54896895,0.0001452,2]
[334032254,1722696640011,-500.0,0.0001452,2]
[334032255,1722696640022,-708.36,0.0001452,2]
[334032257,1722696640034,-1540.15,0.0001452,2]
[334032259,1722696640043,-1826.03,0.0001452,2]
[334032260,1722696640053,-5122.5,0.0001452,2]
[334032262,1722696640064,-500.0,0.0001452,2]
[334032263,1722696640075,-1522.52,0.0001452,2]
[334032264,1722696640087,-500.0,0.0001452,2]
[334032265,1722696640097,-500.0,0.0001452,2]
[334032268,1722696640109,-685.79,0.0001452,2]
[334032270,1722696640118,-6008.97,0.0001452,2]
[334032271,1722696640129,-500.0,0.0001452,2]
[334032272,1722696640141,-1528.18,0.0001452,2]
[334032273,1722696640152,-500.0,0.0001452,2]
[334032274,1722696640163,-500.0,0.0001452,2]
[334032275,1722696640174,-1962.37,0.0001452,2]
[334032276,1722696640185,-500.0,0.0001452,2]
[334032277,1722696640195,-551.26390841,0.0001452,2]
[334032278,1722696640206,-500.0,0.0001452,2]
[334032279,1722696640215,-952.69,0.0001452,2]
[334032280,1722696640226,-500.0,0.0001452,2]
[334032281,1722696640236,-581.83,0.0001452,2]
[334032282,1722696640245,-500.0,0.0001452,2]
[334032283,1722696640254,-500.0,0.0001452,2]
[334032284,1722696640263,-1389.05,0.0001452,2]
[334032285,1722696640274,-2161.03,0.0001452,2]
[334032286,1722696640286,-500.0,0.0001452,2]
[334032287,1722696640296,-500.0,0.0001452,2]
[334032288,1722696640305,-808.11,0.0001452,2]
[334032289,1722696640426,-500.0,0.0001452,2]
[334032290,1722696640439,-500.0,0.0001452,2]
[334032291,1722696640448,-628.53,0.0001452,2]
[334032292,1722696640458,-1222.92,0.0001452,2]
[334032293,1722696640468,-500.0,0.0001452,2]
[334032294,1722696640478,-641.49,0.0001452,2]
[334032295,1722696640487,-643.01,0.0001452,2]
[334032296,1722696640498,-500.0,0.0001452,2]
[334032297,1722696640508,-2847.33,0.0001452,2]
[334032298,1722696640517,-500.0,0.0001452,2]
[334032299,1722696640526,-552.06,0.0001452,2]
[334032300,1722696640536,-500.0,0.0001452,2]
[334032301,1722696640545,-500.0,0.0001452,2]
[334032302,1722696640559,-674.92,0.0001452,2]
[334032303,1722696640569,-664.29,0.0001452,2]
[334032304,1722696640580,-1037.74,0.0001452,2]
[334032305,1722696640590,-595.71,0.0001452,2]
[334032306,1722696640599,-749.2,0.0001452,2]
[334032307,1722696640614,-742.64,0.0001452,2]
[334032308,1722696640624,-500.0,0.0001452,2]
[334032309,1722696640634,-500.0,0.0001452,2]
[334032310,1722696640644,-1159.12,0.0001452,2]
[334032311,1722696640653,-1623.52,0.0001452,2]
[334032312,1722696640664,-500.0,0.0001452,2]
[334032313,1722696640674,-500.0,0.0001452,2]
[334032314,1722696640685,-817.7,0.0001452,2]
[334032315,1722696640695,-500.0,0.0001452,2]
[334032316,1722696640705,-3200.0,0.00014535,2]
[334032317,1722696640719,-195.378209,0.00014585,2]
[334032318,1722696640729,-169.131638,0.00014585,2]
[334032319,1722696640738,-17031.7172504,0.0001468,2]
[334032320,1722696640749,-1091.50397563,0.0001469,2]
[334032321,1722696640759,-816.16582707,0.0001469,2]
[334032322,1722696640768,-550.07412832,0.0001469,2]
[334032323,1722696640776,-261.19201773,0.0001469,2]
[334032324,1722696640785,-194.54850496,0.0001469,2]
[334032325,1722696640797,-17031.7172504,0.00014697,2]
[334032326,1722696640807,-2232.75,0.00014706,2]
[334032327,1722696640817,-2232.75,0.00014706,2]
[334032328,1722696640827,-500.0,0.00014707,7]
[334032329,1722696640836,-500.0,0.00014707,7]
[334032330,1722696640847,-500.0,0.00014707,7]
[334032331,1722696640858,-500.0,0.00014707,7]
[334032332,1722696640869,-500.0,0.00014707,7]
[334032333,1722696640879,-500.0,0.00014707,7]
[334032334,1722696640890,-500.0,0.00014707,7]
[334032335,1722696640900,-500.0,0.00014707,7]
[334032336,1722696640911,-500.0,0.00014707,7]
[334032337,1722696640922,-500.0,0.00014707,7]
[334032338,1722696640933,-500.0,0.00014707,7]
[334032339,1722696640945,-500.0,0.00014707,7]
[334032340,1722696640955,-500.0,0.00014707,7]
[334032341,1722696640966,-500.0,0.00014707,7]
[334032342,1722696640977,-500.0,0.00014707,7]
[334032343,1722696640988,-500.0,0.00014707,7]
[334032344,1722696640998,-500.0,0.00014707,7]
[334032345,1722696641009,-500.0,0.00014707,7]
[334032346,1722696641019,-500.0,0.00014707,7]
[334032347,1722696641030,-500.0,0.00014707,7]
[334032348,1722696641040,-500.0,0.00014707,7]
[334032349,1722696641051,-500.0,0.00014707,7]
[334032350,1722696641063,-500.0,0.00014707,7]
[334032351,1722696641073,-500.0,0.00014707,7]
[334032352,1722696641084,-500.0,0.00014707,7]
[334032353,1722696641094,-500.0,0.00014707,7]
[334032354,1722696641107,-500.0,0.00014707,7]
[334032355,1722696641119,-500.0,0.00014707,7]
[334032356,1722696641130,-500.0,0.00014707,7]
[334032357,1722696641140,-500.0,0.00014707,7]
[334032358,1722696641152,-500.0,0.00014707,7]
[334032359,1722696641163,-500.0,0.00014707,7]
[334032360,1722696641174,-500.0,0.00014707,7]
[334032361,1722696641184,-500.0,0.00014707,7]
[334032362,1722696641195,-500.0,0.00014707,7]
[334032363,1722696641207,-500.0,0.00014707,7]
[334032364,1722696641218,-500.0,0.00014707,7]
[334032365,1722696641230,-500.0,0.00014707,7]
[334032366,1722696641239,-500.0,0.00014707,7]
[334032367,1722696641251,-500.0,0.00014707,7]
[334032368,1722696641261,-500.0,0.00014707,7]
[334032369,1722696641271,-500.0,0.00014707,7]
[334032370,1722696641280,-500.0,0.00014707,7]
[334032371,1722696641290,-500.0,0.00014707,7]
[334032372,1722696641300,-500.0,0.00014707,7]
[334032373,1722696641309,-500.0,0.00014707,7]
[334032374,1722696641318,-331.66,0.00014707,7]
[334032375,1722696641327,-500.0,0.00014707,7]
[334032376,1722696641336,-313.43,0.00014707,7]
[334032377,1722696641346,-500.0,0.00014707,7]
[334032378,1722696641357,-500.0,0.00014707,7]
[334032379,1722696641367,-500.0,0.00014707,7]
[334032380,1722696641378,-500.0,0.00014707,7]
[334032381,1722696641387,-500.0,0.00014707,7]
[334032382,1722696641400,-500.0,0.00014707,7]
[334032383,1722696641413,-500.0,0.00014707,7]
[334032384,1722696641423,-500.0,0.00014707,7]
[334032385,1722696641433,-500.0,0.00014707,7]
[334032386,1722696641443,-500.0,0.00014707,7]
[334032387,1722696641454,-500.0,0.00014707,7]
[334032388,1722696641464,-500.0,0.00014707,7]
[334032389,1722696641476,-500.0,0.00014707,7]
[334032390,1722696641487,-500.0,0.00014707,7]
[334032391,1722696641497,-500.0,0.00014707,7]
[334032392,1722696641507,-500.0,0.00014707,7]
[334032393,1722696641516,-500.0,0.00014707,7]
[334032394,1722696641525,-500.0,0.00014707,7]
[334032395,1722696641537,-500.0,0.00014707,7]
[334032396,1722696641549,-500.0,0.00014707,7]
[334032397,1722696641559,-500.0,0.00014707,7]
[334032398,1722696641570,-500.0,0.00014707,7]
[334032399,1722696641580,-500.0,0.00014707,7]
[334032400,1722696641592,-500.0,0.00014707,7]
[334032401,1722696641602,-500.0,0.00014707,7]
[334032402,1722696641613,-500.0,0.00014707,7]
[334032403,1722696641624,-500.0,0.00014707,7]
[334032404,1722696641634,-500.0,0.00014707,7]
[334032405,1722696641644,-500.0,0.00014707,7]
[334032406,1722696641656,-500.0,0.00014707,7]
[334032407,1722696641666,-500.0,0.00014707,7]
[334032408,1722696641678,-500.0,0.00014707,7]
[334032409,1722696641688,-500.0,0.00014707,7]
[334032410,1722696641698,-500.0,0.00014707,7]
[334032411,1722696641708,-500.0,0.00014707,7]
[334032412,1722696641722,-500.0,0.00014707,7]
[334032413,1722696641734,-500.0,0.00014707,7]
[334032414,1722696641745,-500.0,0.00014707,7]
[334032415,1722696641757,-500.0,0.00014707,7]
[334032416,1722696641768,-500.0,0.00014707,7]
[334032417,1722696641778,-500.0,0.00014707,7]
[334032418,1722696641791,-500.0,0.00014707,7]
[334032419,1722696641803,-500.0,0.00014707,7]
[334032420,1722696641813,-500.0,0.00014707,7]
[334032421,1722696641824,-500.0,0.00014707,7]
[334032422,1722696641834,-151.0,0.00014707,2]
[334032423,1722696641843,-151.225038,0.00014707,2]
[334032424,1722696641852,-151.0,0.00014707,2]
[334032425,1722696641863,-500.0,0.00014783,2]
[334032426,1722696641872,-306.31110823,0.00014783,2]
[334032427,1722696641882,-292.59673497,0.00014783,2]
[334032428,1722696641891,-500.0,0.00014783,2]
[334032429,1722696641901,-620.70639436,0.00014783,2]
[334032430,1722696641912,-500.0,0.00014783,2]
[334032431,1722696641923,-500.0,0.00014783,2]
[334032432,1722696641935,-500.0,0.00014783,2]
[334032433,1722696641945,-500.0,0.00014783,2]
[334032434,1722696641955,-500.0,0.00014783,2]
[334032435,1722696641965,-500.0,0.00014783,2]
[334032436,1722696641975,-500.0,0.00014783,2]
[334032437,1722696641988,-500.0,0.00014783,2]
[334032438,1722696641998,-500.0,0.00014783,2]
[334032439,1722696642008,-500.0,0.00014783,2]
[334032440,1722696642017,-500.0,0.00014783,2]
[334032441,1722696642028,-266.66113658,0.00014783,2]
[334032442,1722696642039,-500.0,0.00014783,2]
[334032443,1722696642051,-500.0,0.00014783,2]
[334032444,1722696642061,-34063.4345008,0.00014784,2]
[334032445,1722696642071,-2232.75,0.00014793,2]
[334032446,1722696642082,-2232.75,0.00014793,2]
[334032447,1722696642092,-1862.14483691,0.00014794,5]
[334032448,1722696642104,-500.0,0.00014794,2]
[334032449,1722696642115,-1017.04,0.00014794,2]
[334032450,1722696642126,-500.0,0.00014794,2]
[334032451,1722696642137,-500.0,0.00014794,2]
[334032452,1722696642148,-500.0,0.00014794,2]
[334032453,1722696642159,-500.0,0.00014794,2]
[334032454,1722696642170,-500.0,0.00014794,2]
[334032455,1722696642182,-500.0,0.00014794,2]
[334032456,1722696642193,-620.7,0.00014794,2]
[334032457,1722696642204,-658.72,0.00014794,2]
[334032458,1722696642214,-500.0,0.00014794,2]
[334032459,1722696642225,-1027.88,0.00014794,2]
[334032460,1722696642235,-500.0,0.00014794,2]
[334032461,1722696642246,-500.0,0.00014794,2]
[334032462,1722696642256,-500.0,0.00014794,2]
[334032463,1722696642267,-672.6,0.00014794,2]
[334032464,1722696642278,-500.0,0.00014794,2]
[334032465,1722696642291,-500.0,0.00014794,2]
[334032466,1722696642302,-500.0,0.00014794,2]
[334032467,1722696642313,-896.89,0.00014794,2]
[334032468,1722696642324,-500.0,0.00014794,2]
[334032469,1722696642334,-708.36,0.00014794,2]
[334032471,1722696642343,-1540.15,0.00014794,2]
[334032473,1722696642355,-1826.03,0.00014794,2]
[334032475,1722696642365,-5122.5,0.00014794,2]
[334032476,1722696642376,-500.0,0.00014794,2]
[334032478,1722696642386,-1522.52,0.00014794,2]
[334032481,1722696642397,-500.0,0.00014794,2]
[334032483,1722696642407,-500.0,0.00014794,2]
[334032485,1722696642416,-685.79,0.00014794,2]
[334032487,1722696642425,-6008.97,0.00014794,2]
[334032489,1722696642435,-500.0,0.00014794,2]
[334032491,1722696642444,-1528.18,0.00014794,2]
[334032493,1722696642454,-500.0,0.00014794,2]
[334032495,1722696642465,-500.0,0.00014794,2]
[334032497,1722696642474,-1962.37,0.00014794,2]
[334032498,1722696642483,-500.0,0.00014794,2]
[334032499,1722696642493,-500.0,0.00014794,2]
[334032500,1722696642506,-952.69,0.00014794,2]
[334032501,1722696642516,-500.0,0.00014794,2]
[334032502,1722696642525,-581.83,0.00014794,2]
[334032503,1722696642535,-500.0,0.00014794,2]
[334032504,1722696642544,-500.0,0.00014794,2]
[334032505,1722696642554,-1389.05,0.00014794,2]
[334032506,1722696642563,-2161.03,0.00014794,2]
[334032507,1722696642572,-500.0,0.00014794,2]
[334032508,1722696642581,-500.0,0.00014794,2]
[334032509,1722696642590,-808.11,0.00014794,2]
[334032510,1722696642599,-500.0,0.00014794,2]
[334032511,1722696642609,-500.0,0.00014794,2]
[334032512,1722696642618,-628.53,0.00014794,2]
[334032513,1722696642627,-1222.92,0.00014794,2]
[334032514,1722696642638,-500.0,0.00014794,2]
[334032515,1722696642650,-641.49,0.00014794,2]
[334032516,1722696642661,-643.01,0.00014794,2]
[334032517,1722696642670,-500.0,0.00014794,2]
[334032519,1722696642680,-2847.33,0.00014794,2]
[334032520,1722696642689,-500.0,0.00014794,2]
[334032521,1722696642699,-552.06,0.00014794,2]
[334032522,1722696642708,-500.0,0.00014794,2]
[334032523,1722696642722,-500.0,0.00014794,2]
[334032524,1722696642731,-674.92,0.00014794,2]
[334032525,1722696642740,-664.29,0.00014794,2]
[334032526,1722696642751,-1037.74,0.00014794,2]
[334032527,1722696642762,-595.71,0.00014794,2]
[334032528,1722696642772,-749.2,0.00014794,2]
[334032529,1722696642781,-742.64,0.00014794,2]
[334032530,1722696642792,-500.0,0.00014794,2]
[334032531,1722696642802,-500.0,0.00014794,2]
[334032532,1722696642811,-1159.12,0.00014794,2]
[334032533,1722696642821,-1623.52,0.00014794,2]
[334032534,1722696642831,-500.0,0.00014794,2]
[334032535,1722696642840,-500.0,0.00014794,2]
[334032536,1722696642849,-817.7,0.00014794,2]
[334032537,1722696642859,-500.0,0.00014794,2]
[334032538,1722696642868,-169.131638,0.0001495,2]
[334032539,1722696642877,-9101.73028854,0.00015,2]
[334032540,1722696642887,-2128.06797104,0.00015,2]
[334032541,1722696642896,-2848.0272935,0.00015,2]
[334032542,1722696642906,-154.76012181,0.00015,2]
[334032543,1722696642916,-1826.58709486,0.00015,2]
[334032544,1722696642926,-4000.0,0.00015,7]
[334032545,1722696642935,-314.35121047,0.00015,2]
[334032546,1722696642944,-17031.7172504,0.00015058,2]
[334032547,1722696642954,-2232.75,0.00015067,2]
[334032548,1722696642964,-2232.75,0.00015067,2]
[334032549,1722696642975,-500.0,0.00015068,2]
[334032550,1722696643074,-151.0,0.00015068,2]
[334032551,1722696643084,-1017.04,0.00015068,2]
[334032552,1722696643094,-500.0,0.00015068,2]
[334032553,1722696643103,-500.0,0.00015068,2]
[334032554,1722696643112,-500.0,0.00015068,2]
[334032555,1722696643122,-500.0,0.00015068,2]
[334032556,1722696643132,-500.0,0.00015068,2]
[334032559,1722696643141,-151.369583,0.00015068,2]
[334032562,1722696643151,-500.0,0.00015068,2]
[334032565,1722696643160,-620.7,0.00015068,2]
[334032566,1722696643170,-658.72,0.00015068,2]
[334032568,1722696643179,-500.0,0.00015068,2]
[334032570,1722696643189,-1027.88,0.00015068,2]
[334032571,1722696643198,-500.0,0.00015068,2]
[334032572,1722696643208,-500.0,0.00015068,2]
[334032573,1722696643218,-500.0,0.00015068,2]
[334032574,1722696643227,-672.6,0.00015068,2]
[334032575,1722696643237,-500.0,0.00015068,2]
[334032576,1722696643247,-500.0,0.00015068,2]
[334032577,1722696643262,-500.0,0.00015068,2]
[334032578,1722696643279,-151.0,0.00015068,2]
[334032579,1722696643289,-896.89,0.00015068,2]
[334032580,1722696643298,-151.0,0.00015068,2]
[334032581,1722696643307,-153.806402,0.00015068,2]
[334032582,1722696643317,-151.0,0.00015068,2]
[334032583,1722696643326,-500.0,0.00015068,2]
[334032584,1722696643335,-708.36,0.00015068,2]
[334032585,1722696643345,-1540.15,0.00015068,2]
[334032586,1722696643354,-1826.03,0.00015068,2]
[334032587,1722696643364,-5122.5,0.00015068,2]
[334032588,1722696643374,-500.0,0.00015068,2]
[334032589,1722696643383,-314.848175,0.00015068,2]
[334032590,1722696643393,-1522.52,0.00015068,2]
[334032591,1722696643402,-500.0,0.00015068,2]
[334032592,1722696643410,-500.0,0.00015068,2]
[334032593,1722696643419,-314.848175,0.00015068,2]
[334032594,1722696643428,-151.0,0.00015068,2]
[334032595,1722696643437,-685.79,0.00015068,2]
[334032596,1722696643447,-6008.97,0.00015068,2]
[334032597,1722696643456,-500.0,0.00015068,2]
[334032598,1722696643465,-151.0,0.00015068,2]
[334032599,1722696643475,-1528.18,0.00015068,2]
[334032600,1722696643485,-500.0,0.00015068,2]
[334032601,1722696643494,-500.0,0.00015068,2]
[334032602,1722696643509,-1962.37,0.00015068,2]
[334032603,1722696643518,-500.0,0.00015068,2]
[334032604,1722696643528,-500.0,0.00015068,2]
[334032605,1722696643537,-952.69,0.00015068,2]
[334032606,1722696643548,-500.0,0.00015068,2]
[334032607,1722696643557,-581.83,0.00015068,2]
[334032608,1722696643566,-500.0,0.00015068,2]
[334032609,1722696643576,-500.0,0.00015068,2]
[334032610,1722696643585,-1389.05,0.00015068,2]
[334032611,1722696643595,-2161.03,0.00015068,2]
[334032612,1722696643605,-500.0,0.00015068,2]
[334032613,1722696643615,-510.39964594,0.00015068,2]
[334032614,1722696643625,-808.11,0.00015068,2]
[334032615,1722696643634,-500.0,0.00015068,2]
[334032616,1722696643643,-500.0,0.00015068,2]
[334032617,1722696643653,-628.53,0.00015068,2]
[334032618,1722696643663,-1222.92,0.00015068,2]
[334032619,1722696643672,-500.0,0.00015068,2]
[334032620,1722696643683,-641.49,0.00015068,2]
[334032621,1722696643693,-643.01,0.00015068,2]
[334032622,1722696643703,-500.0,0.00015068,2]
[334032623,1722696643717,-2847.33,0.00015068,2]
[334032624,1722696643727,-500.0,0.00015068,2]
[334032625,1722696643737,-552.06,0.00015068,2]
[334032626,1722696643747,-160.921472,0.00015068,2]
[334032627,1722696643760,-500.0,0.00015068,2]
[334032628,1722696643770,-500.0,0.00015068,2]
[334032629,1722696643780,-674.92,0.00015068,2]
[334032630,1722696643793,-664.29,0.00015068,2]
[334032631,1722696643804,-1037.74,0.00015068,2]
[334032632,1722696643815,-595.71,0.00015068,2]
[334032633,1722696643826,-749.2,0.00015068,2]
[334032634,1722696643837,-742.64,0.00015068,2]
[334032635,1722696643848,-500.0,0.00015068,2]
[334032636,1722696643859,-500.0,0.00015068,2]
[334032637,1722696643868,-1159.12,0.00015068,2]
[334032638,1722696643878,-1623.52,0.00015068,2]
[334032639,1722696643888,-500.0,0.00015068,2]
[334032640,1722696643899,-500.0,0.00015068,2]
[334032641,1722696643911,-817.7,0.00015068,2]
[334032642,1722696643923,-500.0,0.00015068,2]
[334032643,1722696643933,-17031.7172504,0.00015275,2]
[334032644,1722696643942,-620.04467599,0.00015285,2]
[334032645,1722696643952,-151.0,0.00015285,2]
[334032646,1722696643961,-195.378209,0.00015314,2]
[334032647,1722696643972,-195.378209,0.00015314,2]
[334032648,1722696643983,-169.131638,0.00015314,2]
[334032649,1722696643994,-169.131638,0.00015314,2]
[334032650,1722696644006,-2232.75,0.00015331,2]
[334032651,1722696644015,-151.0,0.00015332,2]
[334032652,1722696644025,-151.0,0.00015332,2]
[334032653,1722696644038,-151.0,0.00015332,2]
[334032654,1722696644048,-203.5732,0.00015332,2]
[334032655,1722696644059,-203.5732,0.00015332,2]
[334032656,1722696644069,-2232.75,0.00015341,2]
[334032657,1722696644081,-500.0,0.00015342,2]
[334032658,1722696644093,-1017.04,0.00015342,2]
[334032659,1722696644103,-500.0,0.00015342,2]
[334032660,1722696644114,-500.0,0.00015342,2]
[334032661,1722696644125,-500.0,0.00015342,2]
[334032662,1722696644135,-500.0,0.00015342,2]
[334032663,1722696644145,-151.0,0.00015342,2]
[334032664,1722696644155,-500.0,0.00015342,2]
[334032665,1722696644165,-151.0,0.00015342,2]
[334032666,1722696644175,-514.99043275,0.00015342,2]
[334032668,1722696644186,-620.7,0.00015342,2]
[334032669,1722696644197,-151.0,0.00015342,2]
[334032671,1722696644207,-152.225328,0.00015342,2]
[334032673,1722696644217,-658.72,0.00015342,2]
[334032675,1722696644226,-151.0,0.00015342,2]
[334032677,1722696644236,-151.0,0.00015342,2]
[334032679,1722696644245,-152.225328,0.00015342,2]
[334032681,1722696644258,-151.444341,0.00015342,2]
[334032684,1722696644267,-151.0,0.00015342,2]
[334032686,1722696644278,-500.0,0.00015342,2]
[334032688,1722696644288,-1027.88,0.00015342,2]
[334032690,1722696644298,-500.0,0.00015342,2]
[334032692,1722696644307,-253.80906799,0.00015342,2]
[334032694,1722696644317,-500.0,0.00015342,2]
[334032696,1722696644329,-672.6,0.00015342,2]
[334032698,1722696644339,-500.0,0.00015342,2]
[334032700,1722696644350,-500.0,0.00015342,2]
[334032702,1722696644359,-500.0,0.00015342,2]
[334032704,1722696644371,-896.89,0.00015342,2]
[334032706,1722696644382,-500.0,0.00015342,2]
[334032708,1722696644393,-708.36,0.00015342,2]
[334032710,1722696644404,-1540.15,0.00015342,2]
[334032712,1722696644414,-1826.03,0.00015342,2]
[334032715,1722696644426,-5122.5,0.00015342,2]
[334032717,1722696644436,-500.0,0.00015342,2]
[334032719,1722696644447,-1522.52,0.00015342,2]
[334032721,1722696644457,-500.0,0.00015342,2]
[334032723,1722696644468,-500.0,0.00015342,2]
[334032725,1722696644478,-685.79,0.00015342,2]
[334032727,1722696644487,-6008.97,0.00015342,2]
[334032729,1722696644499,-345.47815922,0.00015342,2]
[334032731,1722696644512,-1528.18,0.00015342,2]
[334032733,1722696644521,-500.0,0.00015342,2]
[334032735,1722696644531,-500.0,0.00015342,2]
[334032737,1722696644540,-1493.08090317,0.00015342,2]
[334032754,1722696644704,-469.28909683,0.00015342,2]
[334032756,1722696644716,-500.0,0.00015342,2]
[334032758,1722696644726,-500.0,0.00015342,2]
[334032760,1722696644736,-952.69,0.00015342,2]
[334032762,1722696644745,-500.0,0.00015342,2]
[334032764,1722696644758,-446.47090317,0.00015342,2]
[334032766,1722696644772,-135.35909683,0.00015342,2]
[334032768,1722696644781,-500.0,0.00015342,2]
[334032770,1722696644792,-500.0,0.00015342,2]
[334032772,1722696644802,-1389.05,0.00015342,2]
[334032774,1722696644812,-2161.03,0.00015342,2]